fUSD/lending_fUSD_20240416
["ID","MTS","AMOUNT","RATE_DAILY","PERIOD"]
[322789537,1713295646585,500.0,0.00032284,30]
[322789538,1713295646944,500.0,0.00032284,30]
[322789539,1713295647543,500.0,0.00032284,30]
[322789540,1713295647820,500.0,0.00032284,30]
[322789541,1713295648100,500.0,0.00032284,30]
[322789542,1713295648386,615.25716587,0.00032284,30]
[322789543,1713295679473,277.77,0.00015494,2]
[322789544,1713295708619,500.0,0.00032284,30]
[322789545,1713295708891,500.0,0.00032284,30]
[322789546,1713295709192,500.0,0.00032284,30]
[322789547,1713295709498,500.0,0.00032284,30]
[322789548,1713295710114,500.0,0.00032284,30]
[322789549,1713295710517,500.0,0.00032284,30]
[322789550,1713295710803,500.0,0.00032284,30]
[322789551,1713295711130,500.0,0.00032284,30]
[322789552,1713295711405,500.0,0.00032284,30]
[322789553,1713295711723,500.0,0.00032284,30]
[322789554,1713295712540,1088.48458248,0.00015435,2]
[322789555,1713295712568,10504.55541752,0.00015435,2]
[322789556,1713295714888,666.56,0.00013517,2]
[322789557,1713295720595,150.0,0.00015426,2]
[322789558,1713295764419,1782.49,0.00015398,2]
[322789559,1713295777346,200.0,0.00015398,2]
[322789560,1713295787905,284.5,0.00015398,2]
[322789561,1713295803711,365.32582153,0.00032285,30]
[322789562,1713295823688,500.0,0.00015477,2]
[322789596,1713295831930,-162.79479096,0.00015635,2]
[322789598,1713295831940,-1241.03910676,0.00015636,2]
[322789600,1713295831949,-47.61610249,0.00015638,2]
[322789617,1713295832665,-234.56218901,0.00015638,2]
[322789618,1713295832675,-567.06106105,0.0001574,2]
[322789619,1713295832686,-150.0,0.00015741,2]
[322789620,1713295832696,-32.81896806,0.00015742,2]
[322789621,1713295832709,-4480.79283856,0.00015742,2]
[322789622,1713295832733,-789.29286824,0.00015742,2]
[322789623,1713295832745,-5283.13233137,0.00015742,2]
[322789624,1713295832755,-200.0,0.00015743,2]
[322789625,1713295832765,-650.87,0.00015746,2]
[322789626,1713295832775,-13581.81423019,0.00015761,2]
[322789627,1713295832787,-380.54,0.00015761,2]
[322789628,1713295832801,-9937.64576981,0.00015761,2]
[322789629,1713295832811,-1390.21,0.00015768,2]
[322789630,1713295832821,-999.99,0.00015768,2]
[322789631,1713295832831,-666.56,0.00015781,2]
[322789632,1713295832841,-465.79,0.00015802,2]
[322789633,1713295832851,-155.25,0.00015825,2]
[322789634,1713295832861,-499.99,0.00015825,2]
[322789635,1713295832871,-151.43,0.00015854,2]
[322789636,1713295832881,-2090.34,0.00015855,2]
[322789637,1713295832891,-1658.41,0.00015859,2]
[322789638,1713295832901,-480.0,0.00015882,2]
[322789639,1713295832911,-200.0,0.00015914,2]
[322789640,1713295832921,-250.0,0.00015951,2]
[322789641,1713295832930,-1749.88,0.00016095,2]
[322789642,1713295832939,-175.58,0.00016355,2]
[322789643,1713295832948,-258.99001207,0.00016438,2]
[322789644,1713295832958,-167.48,0.00016464,2]
[322789645,1713295832968,-1222.95023345,0.000165,2]
[322789646,1713295832978,-151.43,0.0001668,2]
[322789647,1713295832990,-665.36,0.00016712,2]
[322789648,1713295833000,-520.0,0.00016739,2]
[322789649,1713295833012,-400.0,0.00016839,2]
[322789650,1713295833024,-13320.7634,0.0001698,2]
[322789651,1713295833035,-166.82,0.00017221,2]
[322789652,1713295833047,-210.0,0.00017316,2]
[322789653,1713295833058,-1541.09439046,0.00017386,2]
[322789654,1713295833068,-791.48812257,0.00017387,2]
[322789655,1713295833077,-1027.04377455,0.00017387,2]
[322789656,1713295833087,-2212.48519324,0.00017387,2]
[322789657,1713295833097,-295766.01911405,0.00017388,2]
[322789658,1713295833110,-71035.00004,0.00017388,2]
[322789659,1713295833123,-826.3254998,0.00017388,2]
[322789660,1713295833136,-779.28,0.00017388,2]
[322789661,1713295833148,-1688.08803601,0.00017388,2]
[322789662,1713295833169,-13210.09005576,0.00017388,2]
[322789663,1713295833182,-363.76455997,0.00017388,2]
[322789664,1713295833196,-6302.99500001,0.00017388,2]
[322789665,1713295833209,-427.34999358,0.00017388,2]
[322789666,1713295833221,-367.39999985,0.00017388,2]
[322789667,1713295833233,-490.0,0.00017388,2]
[322789668,1713295833245,-423.02988,0.00017388,2]
[322789669,1713295833256,-378.73,0.00017388,2]
[322789670,1713295833269,-447.53187127,0.00017388,2]
[322789671,1713295833279,-4050.0,0.00017388,2]
[322789672,1713295833292,-1399.99999996,0.00017388,2]
[322789673,1713295833311,-1057.6,0.00017388,2]
[322789674,1713295833326,-702.13739251,0.00017388,2]
[322789675,1713295833337,-5737.5,0.00017388,2]
[322789676,1713295833348,-5303.3560839,0.00017388,2]
[322789677,1713295833359,-1962.53935742,0.00017388,2]
[322789678,1713295833370,-5450.93999964,0.00017388,2]
[322789679,1713295833382,-931.815165,0.00017388,2]
[322789680,1713295833393,-6498.91470793,0.00017388,2]
[322789681,1713295833404,-325.24041446,0.00017388,2]
[322789682,1713295833415,-333.0,0.00017388,2]
[322789683,1713295833426,-928.61876004,0.00017388,2]
[322789684,1713295833438,-417.27522362,0.00017388,2]
[322789685,1713295833456,-432.13597191,0.00017388,2]
[322789686,1713295833467,-290.0,0.00017388,2]
[322789687,1713295833478,-744.18869686,0.00017388,2]
[322789688,1713295833488,-1497.07238,0.00017388,2]
[322789709,1713295837930,-1000.0,0.00015634,2]
[322789711,1713295837940,-5715.718004,0.00017388,2]
[322789714,1713295837955,-1910.5,0.00017388,2]
[322789715,1713295837987,-549.30260749,0.00017388,2]
[322789717,1713295838001,-2724.0,0.00017388,2]
[322789719,1713295838014,-3577.80730142,0.00017388,2]
[322789720,1713295838053,-9840.98129079,0.00017388,2]
[322789721,1713295838066,-1601.74078846,0.00017388,2]
[322789722,1713295838079,-228468.26122535,0.00017388,2]
[322789723,1713295838090,-335.7407,0.00017388,2]
[322789724,1713295838101,-270.32471608,0.00017389,2]
[322789725,1713295838111,-83080.93101585,0.00017389,2]
[322789726,1713295838124,-281.68,0.00017389,2]
[322789727,1713295838136,-304.0,0.00017389,2]
[322789728,1713295838160,-389605.31700795,0.00017389,2]
[322789729,1713295838169,-12238.23673717,0.0001739,2]
[322789730,1713295838179,-195.15351683,0.0001739,2]
[322789731,1713295838189,-206.46540009,0.0001739,2]
[322789732,1713295838199,-247.9170979,0.0001739,2]
[322789733,1713295838210,-5298.5833,0.0001739,2]
[322789734,1713295838220,-1057.6,0.0001739,2]
[322789735,1713295838229,-425.75453347,0.00017481,2]
[322789736,1713295838240,-296.28666493,0.00017486,2]
[322789737,1713295838250,-486.67993032,0.00017486,2]
[322789738,1713295838261,-756.19915371,0.00017486,2]
[322789739,1713295838272,-316.62824532,0.00017486,2]
[322789740,1713295838283,-1773.53667581,0.00017486,2]
[322789741,1713295838294,-300.20034812,0.00017486,2]
[322789742,1713295838304,-155.0,0.00017486,2]
[322789743,1713295838314,-587.16203266,0.00017488,2]
[322789744,1713295838324,-1094112.73767892,0.00017489,2]
[322789745,1713295838340,-3176.93985369,0.00017489,2]
[322789746,1713295838371,-568699.60710456,0.00017489,2]
[322789747,1713295838381,-303.00268691,0.0001749,2]
[322789748,1713295838390,-697.57280196,0.00017491,2]
[322789749,1713295838400,-279.92708951,0.00017491,2]
[322789750,1713295838409,-1451.61233854,0.00017492,2]
[322789751,1713295838420,-270.32471607,0.00017517,2]
[322789752,1713295838431,-845.0,0.000176,2]
[322789753,1713295838442,-12238.23673707,0.00017618,2]
[322789754,1713295838452,-270.32471607,0.00017645,2]
[322789755,1713295838462,-192.83,0.00017707,2]
[322789756,1713295838472,-270.32471607,0.00017772,2]
[322789757,1713295838482,-12238.23673707,0.00017846,2]
[322789758,1713295838492,-1000.0,0.00017855,2]
[322789759,1713295838503,-500.0,0.00017855,2]
[322789760,1713295838512,-200.0,0.00017856,2]
[322789761,1713295838523,-1000.0,0.00017856,2]
[322789762,1713295838534,-500.0,0.00017856,2]
[322789763,1713295838546,-200.0,0.00017856,2]
[322789764,1713295838557,-480.0,0.00017867,2]
[322789765,1713295838567,-11426.24534373,0.0001788,2]
[322789766,1713295838577,-11426.24534371,0.0001788,2]
[322789767,1713295838588,-151.0,0.0001788,2]
[322789768,1713295838597,-151.0,0.0001788,2]
[322789769,1713295838608,-151.0,0.0001788,2]
[322789770,1713295838617,-151.0,0.00017895,2]
[322789771,1713295838627,-151.0,0.00017895,2]
[322789772,1713295838637,-4940.7397,0.00017895,2]
[322789773,1713295838647,-2005.8237,0.00017895,2]
[322789774,1713295838657,-18355.7178,0.00017897,2]
[322789775,1713295838667,-205.961589,0.00017897,2]
[322789776,1713295838677,-672.0,0.00017899,2]
[322789777,1713295838688,-96268.79216371,0.000179,2]
[322789778,1713295838697,-1000.0,0.000179,2]
[322789779,1713295838708,-10000.0,0.000179,2]
[322789780,1713295838717,-151.0,0.000179,2]
[322789781,1713295838727,-270.32471607,0.000179,2]
[322789782,1713295838737,-151.0,0.00017902,2]
[322789783,1713295838747,-151.0,0.00017902,2]
[322789784,1713295838756,-151.0,0.00017902,2]
[322789785,1713295838766,-151.0,0.00017902,2]
[322789786,1713295838776,-151.0,0.00017902,2]
[322789787,1713295838785,-11426.24534371,0.00017903,2]
[322789788,1713295838798,-349.23,0.00017903,2]
[322789789,1713295838809,-349.23,0.00017903,2]
[322789790,1713295838820,-166.82,0.00017931,2]
[322789791,1713295838830,-2204.23540845,0.0001799,2]
[322789792,1713295838840,-611.17563848,0.00017996,2]
[322789793,1713295838849,-164.17232525,0.00017996,2]
[322789794,1713295838859,-3248.45314909,0.00017996,2]
[322789795,1713295838874,-12958.83882445,0.00017996,2]
[322789796,1713295838883,-165.96159661,0.00017996,2]
[322789797,1713295838893,-201.90586254,0.00017996,2]
[322789798,1713295838903,-298.58433011,0.00017996,2]
[322789799,1713295838913,-361.95251767,0.00017996,2]
[322789800,1713295838923,-4441.15401599,0.00017996,2]
[322789801,1713295838933,-2320.11300544,0.00017997,2]
[322789802,1713295838943,-440.6413811,0.00017997,2]
[322789803,1713295838953,-545.73618127,0.00017997,2]
[322789804,1713295838962,-1314.93410654,0.00017998,2]
[322789805,1713295838972,-321.68893254,0.00017998,5]
[322789806,1713295838982,-505.90755723,0.00017999,2]
[322789807,1713295838991,-202.3154242,0.00017999,5]
[322789808,1713295839001,-313.40972,0.00017999,2]
[322789809,1713295839010,-755084.17668484,0.00018,2]
[322789810,1713295839032,-319.80261725,0.00018,2]
[322789811,1713295839047,-376.17167403,0.00018,2]
[322789824,1713295840641,-5437.01110113,0.00018,2]
[322789825,1713295840654,-19354.44962968,0.00018,2]
[322789827,1713295840666,-6017.90005343,0.00018,2]
[322789829,1713295840677,-1010.0,0.00018,2]
[322789831,1713295840689,-3082.01172013,0.00018,2]
[322789844,1713295843057,-16491.90465246,0.00018,2]
[322789855,1713295843850,-385.401005,0.00018,2]
[322789878,1713295846030,-252.95377862,0.00017999,2]
[322789881,1713295846040,-557.0,0.00018,2]
[322789883,1713295846055,-746.84621758,0.00018,2]
[322789898,1713295846193,-105856.07744209,0.00018,2]
[322789900,1713295846205,-2328.78405968,0.00018,2]
[322789910,1713295900866,-407.62,0.00017211,2]
[322789911,1713295900888,-712.0,0.00017295,2]
[322789912,1713295900908,-1222.95023345,0.00017694,2]
[322789913,1713295900927,-267.09258882,0.00017694,2]
[322789914,1713295900948,-250.0,0.00017695,2]
[322789915,1713295900967,-1140.33717773,0.000178,2]
[322789916,1713295902245,-1291.33516739,0.000178,2]
[322789917,1713295902266,-515.48866494,0.00017899,2]
[322789918,1713295902287,-174.1941933,0.00017899,2]
[322789919,1713295902307,-2018.98197437,0.000179,2]
[322789920,1713295902788,-1391.04703119,0.000179,2]
[322789921,1713295902808,-206.46540009,0.000179,2]
[322789922,1713295902830,-2402.48756872,0.00017997,2]
[322789923,1713295903286,-1549.01997213,0.00017997,2]
[322789924,1713295903308,-437.0221954,0.00017998,2]
[322789925,1713295903329,-1241.03910676,0.00017999,2]
[322789926,1713295903350,-480.59289033,0.00017999,2]
[322789927,1713295903372,-292.32583538,0.00017999,2]
[322789928,1713295904001,-4000.0,0.00017999,2]
[322789929,1713295904551,-4000.0,0.00017999,2]
[322789930,1713295905065,-4000.0,0.00017999,2]
[322789931,1713295905618,-162.79479096,0.00017694,2]
[322789932,1713295905639,-3837.20520904,0.00017999,2]
[322789933,1713295906159,-4000.0,0.00017999,2]
[322789934,1713295906686,-4000.0,0.00017999,2]
[322789935,1713295908255,-4000.0,0.00017999,2]
[322789936,1713295916973,-1199.8257,0.00017506,2]
[322789937,1713295937041,150.0,0.00025814,120]
[322789938,1713296024586,500.0,0.00032285,30]
[322789939,1713296174477,183.99,0.00012876,2]
[322789940,1713296180216,1023.6769993,0.00028308,120]
[322789941,1713296204367,764.31,0.00014221,2]
[322789942,1713296209019,1000.0,0.0001422,2]
[322789943,1713296337515,500.0,0.00032188,30]
[322789944,1713296338114,500.0,0.00032188,30]
[322789945,1713296338417,500.0,0.00032188,30]
[322789946,1713296338693,279.77445173,0.00032188,30]
[322789947,1713296479267,1649.846327,0.0001549,2]
[322789948,1713296539771,343.94233247,0.0001549,2]
[322789949,1713296546820,179.5050471,0.0001549,2]
[322789950,1713296548868,319.55959285,0.0001549,2]
[322789951,1713296549077,288.19591373,0.0001549,2]
[322789952,1713296549964,155.0,0.0001549,2]
[322789953,1713296550009,323.45830688,0.0001549,2]
[322789954,1713296550217,899.5,0.00032192,30]
[322789955,1713296552619,365.48582582,0.0001549,2]
[322789956,1713296553885,155.0,0.0001549,2]
[322789957,1713296560663,343.94233247,0.0001549,2]
[322789958,1713296560824,179.5050471,0.0001549,2]
[322789959,1713296561271,288.19591373,0.0001549,2]
[322789960,1713296561631,360.95093537,0.0001549,2]
[322789961,1713296564616,365.24555098,0.0001549,2]
[322789962,1713296564872,319.55959285,0.0001549,2]
[322789963,1713296568014,446.19409157,0.0001549,2]
[322789964,1713296569892,155.0,0.0001549,2]
[322789965,1713296571962,155.25459208,0.0001549,2]
[322789966,1713296575638,360.95093537,0.0001549,2]
[322789967,1713296577778,343.94233247,0.0001549,2]
[322789968,1713296582826,179.87424338,0.0001549,2]
[322789969,1713296583895,155.0,0.0001549,2]
[322789970,1713296584976,319.55959285,0.0001549,2]
[322789971,1713296585081,288.19591373,0.0001549,2]
[322789972,1713296597777,343.94233247,0.0001549,2]
[322789973,1713296599628,360.95093537,0.0001549,2]
[322789974,1713296601086,288.19591373,0.0001549,2]
[322789975,1713296602866,319.55959285,0.0001549,2]
[322789976,1713296604873,179.32336699,0.00015466,2]
[322789977,1713296609899,155.0,0.0001549,2]
[322789978,1713296617794,306.26519143,0.0001549,2]
[322789979,1713296621651,466.8338387,0.0001549,2]
[322789980,1713296623089,287.69110513,0.0001549,2]
[322789981,1713296624875,235.08995079,0.0001549,2]
[322789982,1713296627911,252.17275942,0.0001549,2]
[322789983,1713296651996,891.0756,0.0001547,2]
[322789984,1713296683375,156.72,0.00012876,2]
[322789985,1713296731893,833.43,0.00013902,2]
[322789986,1713296758308,174.813838,0.00032203,30]
[322789987,1713296849893,500.0,0.00032203,30]
[322789988,1713296961354,194.71110834,0.00032204,30]
[322790034,1713297032141,-313.9,0.00015539,2]
[322790037,1713297032196,-317.946002,0.00015539,2]
[322790039,1713297032438,-7.98e-05,0.00015539,2]
[322790040,1713297032449,-368.1539182,0.00015539,2]
[322790041,1713297032458,-4328.00567951,0.0001554,2]
[322790042,1713297032467,-155.0,0.0001554,2]
[322790043,1713297032477,-155.0,0.0001554,2]
[322790044,1713297032486,-2647.3152155,0.00015547,2]
[322790045,1713297032496,-150.0,0.00015596,2]
[322790046,1713297032505,-159.95,0.00015597,2]
[322790047,1713297032514,-200.0,0.00015597,2]
[322790048,1713297032524,-1829.63,0.00015602,2]
[322790049,1713297032533,-200.0,0.00015602,2]
[322790051,1713297032542,-375.29,0.00015646,2]
[322790053,1713297032551,-250.0,0.00015646,2]
[322790055,1713297032560,-500.0,0.00015655,2]
[322790057,1713297032572,-1161.69,0.00015696,2]
[322790059,1713297032581,-569.6,0.00015755,2]
[322790061,1713297032591,-300.0,0.00015777,2]
[322790063,1713297032600,-150.0,0.00015777,2]
[322790064,1713297032609,-150.0,0.00015777,2]
[322790065,1713297032617,-3874.86756877,0.00015778,2]
[322790066,1713297032653,-4674.28034342,0.00015778,2]
[322790067,1713297032665,-624.35055876,0.00015778,2]
[322790068,1713297032676,-1569.745,0.00015778,2]
[322790069,1713297032687,-2185.67117516,0.00015778,2]
[322790070,1713297032699,-10971.08535389,0.00015778,2]
[322790071,1713297032708,-150.99,0.00015778,2]
[322790072,1713297032717,-500.0,0.00015785,2]
[322790073,1713297032727,-1065.85,0.00015785,2]
[322790074,1713297032738,-150.99,0.00015785,2]
[322790075,1713297032747,-150.0,0.00015808,2]
[322790076,1713297032756,-237.25,0.00015814,2]
[322790077,1713297032765,-417.12,0.00015844,2]
[322790078,1713297032774,-237.25,0.00015858,2]
[322790079,1713297032784,-886.94,0.00015858,2]
[322790080,1713297032793,-500.0,0.00015869,2]
[322790081,1713297032803,-386.32,0.00015879,2]
[322790082,1713297032812,-237.25,0.00015901,2]
[322790083,1713297032822,-237.25,0.00015944,2]
[322790084,1713297032832,-270.0,0.00015987,2]
[322790085,1713297032841,-237.25,0.00015988,2]
[322790086,1713297032851,-167.48,0.00016,2]
[322790087,1713297032860,-237.25,0.00016031,2]
[322790088,1713297032869,-237.25,0.00016074,2]
[322790089,1713297032880,-9532.99,0.00016076,2]
[322790090,1713297032890,-430.4,0.00016093,2]
[322790091,1713297032899,-9999.99,0.00016095,2]
[322790092,1713297032910,-1866.98,0.00016115,2]
[322790093,1713297032918,-237.25,0.00016118,2]
[322790094,1713297032927,-237.25,0.00016161,2]
[322790095,1713297032936,-833.43,0.00016166,2]
[322790096,1713297032945,-424.06271263,0.00016197,2]
[322790097,1713297032954,-156.19509503,0.00016197,2]
[322790098,1713297032964,-237.25,0.00016205,2]
[322790099,1713297032973,-237.25,0.00016248,2]
[322790100,1713297032982,-237.25,0.00016291,2]
[322790101,1713297032992,-237.25,0.00016335,2]
[322790102,1713297033001,-1662.75,0.0001637,2]
[322790103,1713297033010,-999.99,0.0001637,2]
[322790104,1713297033020,-499.99,0.0001637,2]
[322790105,1713297033029,-176.0,0.00016377,2]
[322790106,1713297033038,-237.25,0.00016378,2]
[322790107,1713297033048,-9999.99,0.00016411,2]
[322790108,1713297033056,-237.25,0.00016421,2]
[322790109,1713297033066,-2152.38,0.00016438,2]
[322790110,1713297033075,-10400.31,0.00016438,2]
[322790111,1713297033084,-237.25,0.00016465,2]
[322790112,1713297033094,-1222.95023345,0.00016507,2]
[322790113,1713297033103,-237.25,0.00016508,2]
[322790114,1713297033112,-237.25,0.00016551,2]
[322790115,1713297033122,-167.86,0.00016578,2]
[322790116,1713297033131,-237.25,0.00016595,2]
[322790117,1713297033140,-237.25,0.00016638,2]
[322790118,1713297033150,-154.33,0.0001669,2]
[322790119,1713297033160,-154.33,0.00016774,2]
[322790120,1713297033169,-300.0,0.00016997,2]
[322790121,1713297033179,-473.09086858,0.00017097,2]
[322790122,1713297033188,-153.31,0.00017142,2]
[322790123,1713297033198,-150.0,0.00017209,2]
[322790124,1713297033207,-210.0,0.00017355,2]
[322790125,1713297033217,-155.38862251,0.00017423,2]
[322790126,1713297033227,-155.38862251,0.00017582,2]
[322790127,1713297033237,-150.0,0.00017589,2]
[322790128,1713297033246,-150.89,0.000176,2]
[322790129,1713297033255,-2352.0,0.000176,2]
[322790130,1713297033265,-375.29,0.00017602,2]
[322790131,1713297033274,-150.0,0.00017647,2]
[322790132,1713297033283,-569.6,0.00017724,2]
[322790133,1713297033292,-155.38862251,0.0001774,2]
[322790134,1713297033302,-261.17476,0.0001782,2]
[322790135,1713297033311,-500.0,0.00017856,2]
[322790136,1713297033321,-200.0,0.00017856,2]
[322790137,1713297033330,-36739.61308487,0.00017897,2]
[322790138,1713297033342,-26137.63287942,0.00017897,2]
[322790139,1713297033354,-6473.32561868,0.00017897,2]
[322790140,1713297033365,-864.60192836,0.00017897,2]
[322790141,1713297033375,-2366.0310923,0.00017899,2]
[322790152,1713297038134,-848.26710872,0.00015696,2]
[322790157,1713297038188,-303.48,0.00015696,2]
[322790167,1713297038349,-845.71642721,0.00015696,2]
[322790173,1713297038405,-4722.76454072,0.00015696,2]
[322790185,1713297040382,-7190.51192335,0.00015696,2]
[322790186,1713297040392,-5133.9689077,0.00017899,2]
[322790187,1713297040401,-155.38862251,0.00017899,2]
[322790188,1713297040412,-180.28720509,0.00017899,2]
[322790189,1713297040420,-451.05258184,0.00017899,2]
[322790190,1713297040429,-11981.55822754,0.00017899,2]
[322790191,1713297040438,-10000.0,0.000179,2]
[322790192,1713297040447,-165.27806528,0.000179,2]
[322790193,1713297040456,-1621.11489676,0.000179,2]
[322790194,1713297040465,-2273.35267038,0.000179,2]
[322790195,1713297040473,-270.0,0.00017986,2]
[322790196,1713297040482,-283.31426977,0.00017989,2]
[322790197,1713297040491,-2256.57403835,0.0001799,2]
[322790198,1713297040500,-9680.0166625,0.00017992,2]
[322790199,1713297040509,-100791.8445549,0.00017992,2]
[322790200,1713297040518,-5031.3941472,0.00017992,2]
[322790201,1713297040528,-966.55573744,0.00017997,2]
[322790202,1713297040537,-4032.08626936,0.00017997,2]
[322790203,1713297040546,-155.0,0.00017997,2]
[322790204,1713297040555,-486.67993032,0.00017997,2]
[322790205,1713297040565,-4722.8830301,0.00017997,2]
[322790206,1713297040576,-267.09258882,0.00017997,2]
[322790207,1713297040585,-210.32926479,0.00017997,2]
[322790208,1713297040594,-407.89254635,0.00017997,2]
[322790209,1713297040604,-839.64535407,0.00017997,2]
[322790211,1713297040614,-537.29485027,0.00017997,2]
[322790213,1713297040623,-13579.82271833,0.00017998,2]
[322790214,1713297040632,-1395.54,0.00017998,2]
[322790215,1713297040644,-3900.74743506,0.00017998,2]
[322790216,1713297040653,-635.0,0.00017999,2]
[322790217,1713297040662,-124331.32651406,0.00017999,2]
[322790218,1713297040674,-1093559.25598907,0.00017999,2]
[322790219,1713297041991,-848.067256,0.00017999,2]
[322790220,1713297042150,-642.35214,0.00017999,2]
[322790221,1713297042167,-2645.5290576,0.00017999,2]
[322790222,1713297042205,-333.6078554,0.00017999,2]
[322790223,1713297042216,-3071.00803848,0.00017999,2]
[322790224,1713297042261,-6619.7822746,0.00017999,2]
[322790225,1713297042276,-2686.62706681,0.00017999,2]
[322790245,1713297043274,-2925.69016085,0.00017999,2]
[322790264,1713297043436,-2682.44403694,0.00017999,2]
[322790266,1713297043448,-654.02,0.00017999,2]
[322790269,1713297043993,-1823.3640575,0.00017999,2]
[322790287,1713297047405,-622.0,0.00017999,2]
[322790288,1713297047416,-466.5,0.00017999,2]
[322790290,1713297047427,-738.57999998,0.00017999,2]
[322790291,1713297047514,-6254.70780033,0.00017999,2]
[322790292,1713297047525,-49792.19338,0.00017999,2]
[322790293,1713297047536,-24181.20074934,0.00017999,2]
[322790294,1713297047548,-102038.62433532,0.00017999,2]
[322790295,1713297047569,-879.23138731,0.00017999,2]
[322790296,1713297047769,-100203.87200002,0.00017999,2]
[322790297,1713297072125,1489.17806127,0.000154,2]
[322790298,1713297115623,6278.43671497,0.0001539,2]
[322790299,1713297149456,150.9336365,0.00015,2]
[322790300,1713297189070,304.74188401,0.00032204,30]
[322790301,1713297196430,156.72,0.0001338,2]
[322790302,1713297205550,845.05,0.00014807,2]
[322790303,1713297232323,260.62788103,0.00032204,30]
[322790304,1713297232479,38333.77249942,0.00028,30]
[322790305,1713297254360,500.0,0.00032204,30]
[322790306,1713297254623,500.0,0.00032204,30]
[322790307,1713297254921,158.60786321,0.00032204,30]
[322790309,1713297268671,16881.96549935,0.00015,2]
[322790310,1713297475017,500.0,0.00032161,30]
[322790311,1713297475270,500.0,0.00032161,30]
[322790312,1713297475533,500.0,0.00032161,30]
[322790313,1713297475808,500.0,0.00032161,30]
[322790314,1713297476088,500.0,0.00032161,30]
[322790315,1713297476339,500.0,0.00032161,30]
[322790316,1713297476611,500.0,0.00032161,30]
[322790317,1713297476907,500.0,0.00032161,30]
[322790318,1713297477195,500.0,0.00032161,30]
[322790319,1713297477476,155.61347399,0.00032161,30]
[322790322,1713297748085,845.52,0.00014595,2]
[322790339,1713298232399,-155.7833669,0.00015899,2]
[322790340,1713298232409,-286.9116331,0.00015998,2]
[322790341,1713298232420,-943.53265622,0.00015998,2]
[322790342,1713298232433,-10.59481744,0.00015998,2]
[322790343,1713298232444,-643.14538443,0.00015999,2]
[322790344,1713298232453,-643.14538443,0.00015999,2]
[322790345,1713298232464,-643.14538443,0.00015999,2]
[322790346,1713298232473,-643.14538443,0.00015999,2]
[322790347,1713298232482,-643.14538443,0.00015999,2]
[322790348,1713298232492,-643.14538443,0.00015999,2]
[322790349,1713298232501,-643.14538443,0.00015999,2]
[322790350,1713298232511,-643.14538443,0.00015999,2]
[322790351,1713298232523,-643.14538443,0.00015999,2]
[322790352,1713298232535,-158.0,0.00016,2]
[322790353,1713298232545,-155.7833668,0.00016099,2]
[322790354,1713298232557,-1491.16409426,0.00016222,2]
[322790355,1713298232573,-6851.97910574,0.00016222,2]
[322790356,1713298232582,-150.0,0.00016239,2]
[322790357,1713298232591,-4837.32109426,0.00016262,2]
[322790358,1713298232604,-319.50034176,0.00016262,2]
[322790359,1713298232615,-2000.40856398,0.00016262,2]
[322790360,1713298232625,-155.7833668,0.00016298,2]
[322790361,1713298232634,-250.0,0.0001631,2]
[322790362,1713298232644,-300.0,0.00016321,2]
[322790363,1713298232655,-150.0,0.00016321,2]
[322790364,1713298232664,-364.20806919,0.00016322,2]
[322790365,1713298232676,-867.67329241,0.00016322,2]
[322790552,1713298238876,-385.46466382,0.00016322,2]
[322790553,1713298238888,-978.25807628,0.00016322,2]
[322790554,1713298238939,-2629.20578365,0.00016322,2]
[322790555,1713298238950,-380.04,0.00016322,2]
[322790556,1713298238962,-596.04655466,0.00016322,2]
[322790557,1713298238994,-667.09262,0.00016322,2]